fUST/lending_fUST_20240730
["ID","MTS","AMOUNT","RATE_DAILY","PERIOD"]
[333610671,1722279052430,-500.0,0.00013972,2]
[333610672,1722279052440,-3344.640788,0.00013972,2]
[333610673,1722279052450,-500.0,0.00013972,2]
[333610674,1722279052461,-500.0,0.00013972,2]
[333610675,1722279052471,-500.0,0.00013972,2]
[333610676,1722279052481,-887.07,0.00013972,2]
[333610677,1722279052492,-500.0,0.00013972,2]
[333610678,1722279052502,-500.0,0.00013972,2]
[333610679,1722279052512,-500.0,0.00013972,2]
[333610680,1722279052522,-500.0,0.00013972,2]
[333610681,1722279052532,-500.0,0.00013972,2]
[333610682,1722279052542,-500.0,0.00013972,2]
[333610683,1722279052552,-500.0,0.00013972,2]
[333610684,1722279052563,-500.0,0.00013972,2]
[333610685,1722279052574,-500.0,0.00013972,2]
[333610686,1722279052586,-500.0,0.00013972,2]
[333610687,1722279052599,-500.0,0.00013972,2]
[333610688,1722279052610,-500.0,0.00013972,2]
[333610689,1722279052620,-151.0,0.00013972,2]
[333610690,1722279052630,-151.0,0.00013972,2]
[333610691,1722279052640,-500.0,0.00013972,2]
[333610692,1722279052651,-500.0,0.00013972,2]
[333610693,1722279052661,-500.0,0.00013972,2]
[333610694,1722279052672,-500.0,0.00013972,2]
[333610695,1722279052682,-500.0,0.00013972,2]
[333610696,1722279052692,-151.0,0.00013972,2]
[333610697,1722279052702,-151.0,0.00013972,2]
[333610698,1722279052712,-151.0,0.00013972,2]
[333610699,1722279052722,-500.0,0.00013972,2]
[333610700,1722279052732,-464.01618759,0.00013972,2]
[333610701,1722279052742,-1215.64,0.00013972,2]
[333610702,1722279052753,-151.0,0.00013972,2]
[333610703,1722279052763,-151.0,0.00013972,2]
[333610704,1722279052773,-500.0,0.00013972,2]
[333610705,1722279052784,-500.0,0.00013972,2]
[333610706,1722279052793,-500.0,0.00013972,2]
[333610707,1722279052804,-151.0,0.00013972,2]
[333610708,1722279052816,-500.0,0.00013972,2]
[333610709,1722279052827,-151.0,0.00013972,2]
[333610710,1722279052838,-500.0,0.00013972,2]
[333610711,1722279052848,-293.33350405,0.00013972,2]
[333610712,1722279052857,-503.77063553,0.00013972,2]
[333610713,1722279052867,-500.0,0.00013972,2]
[333610714,1722279052876,-500.0,0.00013972,2]
[333610715,1722279052886,-164.866201,0.00013972,2]
[333610716,1722279052895,-164.866201,0.00013972,2]
[333610717,1722279052904,-3221.47642,0.00013972,2]
[333610718,1722279052914,-164.866201,0.00013972,2]
[333610719,1722279052923,-164.866201,0.00013972,2]
[333610720,1722279052933,-500.0,0.00013972,2]
[333610721,1722279052943,-500.0,0.00013972,2]
[333610722,1722279052954,-500.0,0.00013972,2]
[333610723,1722279052963,-961.26,0.00013972,2]
[333610724,1722279052973,-3221.47642,0.00013972,2]
[333610725,1722279052982,-669.11,0.00013972,2]
[333610726,1722279052994,-500.0,0.00013972,2]
[333610727,1722279053004,-1117.01,0.00013972,2]
[333610728,1722279053013,-500.0,0.00013972,2]
[333610729,1722279053023,-500.0,0.00013972,2]
[333610730,1722279053035,-652.31,0.00013972,2]
[333610731,1722279053044,-500.0,0.00013972,2]
[333610732,1722279053055,-500.0,0.00013972,2]
[333610733,1722279053066,-500.0,0.00013972,2]
[333610734,1722279053076,-500.0,0.00013972,2]
[333610735,1722279053085,-1244.36,0.00013972,2]
[333610736,1722279053095,-500.0,0.00013972,2]
[333610737,1722279053105,-500.0,0.00013972,2]
[333610738,1722279053115,-500.0,0.00013972,2]
[333610739,1722279053124,-436.262228,0.00013972,2]
[333610740,1722279053134,-151.0,0.00013972,2]
[333610741,1722279053144,-436.262228,0.00013972,2]
[333610742,1722279053154,-151.0,0.00013972,2]
[333610743,1722279053163,-500.0,0.00013972,2]
[333610744,1722279053173,-500.0,0.00013972,2]
[333610745,1722279053182,-500.0,0.00013972,2]
[333610746,1722279053191,-151.0,0.00013972,2]
[333610747,1722279053201,-501.96304877,0.00013972,2]
[333610748,1722279053210,-500.0,0.00013972,2]
[333610749,1722279053220,-500.0,0.00013972,2]
[333610750,1722279053230,-602.81967331,0.00013972,2]
[333610751,1722279053239,-500.0,0.00013972,2]
[333610752,1722279053249,-500.0,0.00013972,2]
[333610753,1722279053259,-151.0,0.00013972,2]
[333610754,1722279053268,-573.50308911,0.00013972,2]
[333610755,1722279053278,-500.0,0.00013972,2]
[333610756,1722279053288,-570.08,0.00013972,2]
[333610757,1722279053297,-500.0,0.00013972,2]
[333610758,1722279053306,-500.0,0.00013972,2]
[333610759,1722279053316,-500.0,0.00013972,2]
[333610760,1722279053325,-500.0,0.00013972,2]
[333610761,1722279053335,-167.95448,0.00013972,2]
[333610762,1722279053345,-500.0,0.00013972,2]
[333610763,1722279053354,-167.95448,0.00013972,2]
[333610764,1722279053363,-500.0,0.00013972,2]
[333610765,1722279053373,-500.0,0.00013972,2]
[333610766,1722279053383,-500.0,0.00013972,2]
[333610767,1722279053392,-151.0,0.00013972,2]
[333610768,1722279053402,-500.0,0.00013972,2]
[333610769,1722279053415,-500.0,0.00013972,2]
[333610770,1722279053424,-714.31,0.00013972,2]
[333610771,1722279053434,-500.0,0.00013972,2]
[333610772,1722279053445,-925.784255,0.00013972,2]
[333610773,1722279053454,-500.0,0.00013972,2]
[333610774,1722279053464,-644.39030274,0.00013972,2]
[333610775,1722279053475,-500.0,0.00013972,2]
[333610776,1722279053486,-500.0,0.00013972,2]
[333610777,1722279053496,-500.0,0.00013972,2]
[333610778,1722279053506,-500.0,0.00013972,2]
[333610779,1722279053517,-652.11,0.00013972,2]
[333610780,1722279053528,-925.784255,0.00013972,2]
[333610781,1722279053539,-500.0,0.00013972,2]
[333610782,1722279053548,-500.0,0.00013972,2]
[333610783,1722279053560,-500.0,0.00013972,2]
[333610784,1722279053571,-2230.272682,0.00013972,2]
[333610785,1722279053582,-500.0,0.00013972,2]
[333610786,1722279053592,-624.45146625,0.00013972,2]
[333610787,1722279053602,-2230.272682,0.00013972,2]
[333610788,1722279053612,-500.0,0.00013972,2]
[333610789,1722279053621,-577.94904861,0.00013972,2]
[333610790,1722279053631,-511.04055185,0.00013972,2]
[333610791,1722279053643,-550.58622543,0.00013972,2]
[333610792,1722279053652,-500.0,0.00013972,2]
[333610793,1722279053662,-501.21387868,0.00013972,2]
[333610794,1722279053672,-500.0,0.00013972,2]
[333610795,1722279053683,-500.0,0.00013972,2]
[333610796,1722279053693,-507.57639924,0.00013972,2]
[333610797,1722279053703,-1078.934376,0.00013972,2]
[333610798,1722279053713,-500.0,0.00013972,2]
[333610799,1722279053722,-500.0,0.00013972,2]
[333610800,1722279053732,-500.0,0.00013972,2]
[333610801,1722279053826,-1078.934376,0.00013972,2]
[333610802,1722279053836,-500.0,0.00013972,2]
[333610803,1722279053846,-500.0,0.00013972,2]
[333610804,1722279053857,-151.0,0.00013972,2]
[333610805,1722279053866,-504.83737001,0.00013972,2]
[333610806,1722279053876,-683.84,0.00013972,2]
[333610807,1722279053885,-500.0,0.00013972,2]
[333610808,1722279053895,-500.0,0.00013972,2]
[333610809,1722279053905,-399.459892,0.00013972,2]
[333610810,1722279053915,-500.0,0.00013972,2]
[333610811,1722279053925,-705.39,0.00013972,2]
[333610812,1722279053935,-500.0,0.00013972,2]
[333610813,1722279053944,-500.0,0.00013972,2]
[333610814,1722279053954,-500.0,0.00013972,2]
[333610815,1722279053964,-500.0,0.00013972,2]
[333610816,1722279053973,-399.459892,0.00013972,2]
[333610817,1722279053983,-151.0,0.00013972,2]
[333610818,1722279053992,-151.0,0.00013972,2]
[333610819,1722279054002,-500.0,0.00013972,2]
[333610820,1722279054011,-500.0,0.00013972,2]
[333610821,1722279054021,-500.0,0.00013972,2]
[333610822,1722279054031,-13162.02,0.00013972,2]
[333610823,1722279054042,-500.0,0.00013972,2]
[333610824,1722279054052,-500.0,0.00013972,2]
[333610825,1722279054065,-151.0,0.00013972,2]
[333610826,1722279054075,-261.48676,0.00013972,2]
[333610827,1722279054085,-500.0,0.00013972,2]
[333610828,1722279054096,-500.0,0.00013972,2]
[333610829,1722279054105,-151.0,0.00013972,2]
[333610830,1722279054115,-1411.24,0.00013972,2]
[333610831,1722279054125,-151.0,0.00013972,2]
[333610832,1722279054138,-500.0,0.00013972,2]
[333610833,1722279054148,-262.989409,0.00013972,2]
[333610834,1722279054159,-500.0,0.00013972,2]
[333610835,1722279054169,-1243.6,0.00013972,2]
[333610836,1722279054178,-500.0,0.00013972,2]
[333610837,1722279054187,-262.989409,0.00013972,2]
[333610838,1722279054197,-500.0,0.00013972,2]
[333610839,1722279054207,-500.0,0.00013972,2]
[333610840,1722279054217,-637.03,0.00013972,2]
[333610841,1722279054226,-151.0,0.00013972,2]
[333610842,1722279054236,-188.867999,0.00013972,2]
[333610843,1722279054245,-500.0,0.00013972,2]
[333610844,1722279054255,-500.0,0.00013972,2]
[333610845,1722279054265,-500.0,0.00013972,2]
[333610846,1722279054274,-955.44,0.00013972,2]
[333610847,1722279054284,-500.0,0.00013972,2]
[333610848,1722279054294,-500.0,0.00013972,2]
[333610849,1722279054304,-500.0,0.00013972,2]
[333610850,1722279054313,-2311.88,0.00013972,2]
[333610851,1722279054322,-611.57,0.00013972,2]
[333610852,1722279054332,-500.0,0.00013972,2]
[333610853,1722279054342,-500.0,0.00013972,2]
[333610854,1722279054351,-500.0,0.00013972,2]
[333610855,1722279054362,-1476.7,0.00013972,2]
[333610856,1722279054372,-6495.03,0.00013972,2]
[333610857,1722279054381,-500.0,0.00013972,2]
[333610858,1722279054391,-500.0,0.00013972,2]
[333610859,1722279054400,-500.0,0.00013972,2]
[333610860,1722279054410,-501.81907313,0.00013972,2]
[333610861,1722279054419,-500.0,0.00013972,2]
[333610862,1722279054429,-500.0,0.00013972,2]
[333610863,1722279054439,-1486.44,0.00013972,2]
[333610864,1722279054449,-500.0,0.00013972,2]
[333610865,1722279054460,-500.0,0.00013972,2]
[333610866,1722279054470,-500.0,0.00013972,2]
[333610867,1722279054480,-500.0,0.00013972,2]
[333610868,1722279054489,-545.33543115,0.00013972,2]
[333610869,1722279054499,-979.15,0.00013972,2]
[333610870,1722279054509,-500.0,0.00013972,2]
[333610871,1722279054519,-500.0,0.00013972,2]
[333610872,1722279054528,-500.0,0.00013972,2]
[333610873,1722279054540,-4278.53,0.00013972,2]
[333610874,1722279054551,-500.0,0.00013972,2]
[333610875,1722279054560,-892.21,0.00013972,2]
[333610876,1722279054572,-500.0,0.00013972,2]
[333610877,1722279054581,-960.63,0.00013972,2]
[333610878,1722279054591,-500.0,0.00013972,2]
[333610879,1722279054601,-500.0,0.00013972,2]
[333610880,1722279054611,-500.0,0.00013972,2]
[333610881,1722279054621,-1536.46,0.00013972,2]
[333610882,1722279054631,-500.0,0.00013972,2]
[333610883,1722279054640,-500.0,0.00013972,2]
[333610884,1722279054650,-500.0,0.00013972,2]
[333610885,1722279054660,-500.0,0.00013972,2]
[333610886,1722279054669,-500.0,0.00013972,2]
[333610887,1722279054679,-1088.23,0.00013972,2]
[333610888,1722279054689,-1956.66,0.00013972,2]
[333610889,1722279054699,-500.0,0.00013972,2]
[333610890,1722279054709,-1631.61,0.00013972,2]
[333610891,1722279054719,-1181.17,0.00013972,2]
[333610892,1722279054729,-500.0,0.00013972,2]
[333610893,1722279054738,-422.96763146,0.00013972,2]
[333610894,1722279054748,-1156.8,0.00013972,2]
[333610895,1722279054767,-500.0,0.00013972,2]
[333610896,1722279054779,-500.63230799,0.00013972,2]
[333610897,1722279054790,-500.0,0.00013972,2]
[333610898,1722279054800,-3055.21,0.00013972,2]
[333610899,1722279054810,-372.93496638,0.00013972,2]
[333610900,1722279054820,-916.67,0.00013972,2]
[333610901,1722279054830,-500.0,0.00013972,2]
[333610902,1722279054840,-500.0,0.00013972,2]
[333610903,1722279054850,-150.0,0.00013972,2]
[333610904,1722279054860,-500.0,0.00013972,2]
[333610905,1722279054871,-500.0,0.00013972,2]
[333610906,1722279054881,-500.0,0.00013972,2]
[333610907,1722279054892,-1092.28,0.00013972,2]
[333610908,1722279054903,-500.0,0.00013972,2]
[333610909,1722279054914,-500.0,0.00013972,2]
[333610910,1722279054923,-500.0,0.00013972,2]
[333610911,1722279054935,-974.1,0.00013972,2]
[333610912,1722279054945,-506.42149932,0.00013972,2]
[333610913,1722279054955,-500.0,0.00013972,2]
[333610914,1722279054965,-1741.71,0.00013972,2]
[333610915,1722279054976,-500.0,0.00013972,2]
[333610916,1722279054987,-500.0,0.00013972,2]
[333610917,1722279054997,-500.0,0.00013972,2]
[333610918,1722279055008,-151.0,0.00013972,2]
[333610919,1722279055018,-500.0,0.00013972,2]
[333610920,1722279055028,-824.65,0.00013972,2]
[333610921,1722279055039,-500.0,0.00013972,2]
[333610922,1722279055049,-1336.36,0.00013972,2]
[333610923,1722279055063,-500.0,0.00013972,2]
[333610924,1722279055074,-880.38,0.00013972,2]
[333610925,1722279055084,-1360.3,0.00013972,2]
[333610926,1722279055094,-1961.15,0.00013972,2]
[333610927,1722279055105,-500.0,0.00013972,2]
[333610928,1722279055115,-2042.18,0.00013972,2]
[333610929,1722279055125,-500.0,0.00013972,2]
[333610930,1722279055137,-562.84,0.00013972,2]
[333610931,1722279055147,-151.0,0.00013972,2]
[333610932,1722279055158,-500.0,0.00013972,2]
[333610933,1722279055168,-727.32,0.00013972,2]
[333610934,1722279055178,-500.0,0.00013972,2]
[333610935,1722279055187,-500.0,0.00013972,2]
[333610936,1722279055197,-500.0,0.00013972,2]
[333610937,1722279055208,-500.0,0.00013972,2]
[333610938,1722279055219,-500.0,0.00013972,2]
[333610939,1722279055230,-751.84,0.00013972,2]
[333610940,1722279055240,-1898.16,0.00013972,2]
[333610941,1722279055250,-510.44604685,0.00013972,2]
[333610942,1722279055260,-500.0,0.00013972,2]
[333610943,1722279055270,-960.21,0.00013972,2]
[333610944,1722279055281,-500.0,0.00013972,2]
[333610945,1722279055291,-500.0,0.00013972,2]
[333610946,1722279055302,-500.0,0.00013972,2]
[333610947,1722279055312,-151.0,0.00013972,2]
[333610948,1722279055322,-811.91,0.00013972,2]
[333610949,1722279055332,-162.60488488,0.00013972,2]
[333610950,1722279055342,-500.0,0.00013972,2]
[333610951,1722279055352,-500.0,0.00013972,2]
[333610952,1722279055362,-1505.2,0.00013972,2]
[333610953,1722279055372,-1054.7,0.00013972,2]
[333610954,1722279055382,-151.0,0.00013972,2]
[333610955,1722279055392,-582.46,0.00013972,2]
[333610956,1722279055402,-500.0,0.00013972,2]
[333610957,1722279055413,-500.0,0.00013972,2]
[333610958,1722279055423,-156.327725,0.00013972,2]
[333610959,1722279055434,-1503.11,0.00013972,2]
[333610960,1722279055444,-2290.82,0.00013972,2]
[333610961,1722279055453,-500.0,0.00013972,2]
[333610962,1722279055463,-151.0,0.00013972,2]
[333610963,1722279055473,-500.0,0.00013972,2]
[333610964,1722279055483,-156.327725,0.00013972,2]
[333610965,1722279055493,-500.0,0.00013972,2]
[333610966,1722279055503,-521.2734692,0.00013972,2]
[333610967,1722279055513,-500.0,0.00013972,2]
[333610968,1722279055524,-2618.45,0.00013972,2]
[333610969,1722279055535,-675.137874,0.00013972,2]
[333610970,1722279055545,-151.0,0.00013972,2]
[333610971,1722279055556,-151.0,0.00013972,2]
[333610972,1722279055566,-500.0,0.00013972,2]
[333610973,1722279055577,-500.0,0.00013972,2]
[333610974,1722279055587,-755.53,0.00013972,2]
[333610975,1722279055597,-500.0,0.00013972,2]
[333610976,1722279055607,-501.90667774,0.00013972,2]
[333610977,1722279055621,-440.48102587,0.00013972,2]
[333610978,1722279055632,-1800.52,0.00013972,2]
[333610979,1722279055643,-4358.11,0.00013972,2]
[333610980,1722279055654,-1623.36,0.00013972,2]
[333610981,1722279055777,-500.0,0.00013972,2]
[333610982,1722279055788,-1583.2,0.00013972,2]
[333610983,1722279055798,-198.51526294,0.00013972,2]
[333610984,1722279055807,-675.137874,0.00013972,2]
[333610985,1722279055817,-500.0,0.00013972,2]
[333610986,1722279055827,-500.0,0.00013972,2]
[333610987,1722279055836,-581.63820601,0.00013972,2]
[333610988,1722279055846,-595.32,0.00013972,2]
[333610989,1722279055856,-1193.31,0.00013972,2]
[333610990,1722279055867,-885.86,0.00013972,2]
[333610991,1722279055877,-1481.56,0.00013972,2]
[333610992,1722279055887,-500.0,0.00013972,2]
[333610993,1722279055896,-500.0,0.00013972,2]
[333610994,1722279055906,-500.0,0.00013972,2]
[333610995,1722279055915,-500.0,0.00013972,2]
[333610996,1722279055925,-1091.99,0.00013972,2]
[333610997,1722279055935,-500.0,0.00013972,2]
[333610998,1722279055945,-391.33203,0.00013972,2]
[333610999,1722279055955,-500.0,0.00013972,2]
[333611000,1722279055964,-1421.8,0.00013972,2]
[333611001,1722279055973,-500.0,0.00013972,2]
[333611002,1722279055983,-500.0,0.00013972,2]
[333611003,1722279055992,-500.0,0.00013972,2]
[333611004,1722279056002,-500.0,0.00013972,2]
[333611005,1722279056014,-500.0,0.00013972,2]
[333611006,1722279056025,-500.0,0.00013972,2]
[333611007,1722279056035,-500.0,0.00013972,2]
[333611008,1722279056045,-385.99031073,0.00013972,2]
[333611009,1722279056057,-391.33203,0.00013972,2]
[333611010,1722279056072,-500.0,0.00013972,2]
[333611011,1722279056081,-2401.55179,0.00013972,2]
[333611012,1722279056091,-2401.55179,0.00013972,2]
[333611013,1722279056100,-3019.44,0.00013972,2]
[333611014,1722279056110,-740.14,0.00013972,2]
[333611015,1722279056119,-4664.59,0.00013972,2]
[333611016,1722279056129,-2401.55179,0.00013972,2]
[333611017,1722279056139,-2401.55179,0.00013972,2]
[333611018,1722279056149,-888.0,0.00013972,2]
[333611019,1722279056159,-500.0,0.00013972,2]
[333611020,1722279056168,-500.0,0.00013972,2]
[333611021,1722279056178,-3369.83575,0.00013972,2]
[333611022,1722279056188,-500.0,0.00013972,2]
[333611023,1722279056197,-500.0,0.00013972,2]
[333611024,1722279056207,-500.0,0.00013972,2]
[333611025,1722279056217,-3369.83575,0.00013972,2]
[333611026,1722279056227,-808.66,0.00013972,2]
[333611027,1722279056236,-500.0,0.00013972,2]
[333611028,1722279056246,-1489.43,0.00013972,2]
[333611029,1722279056255,-515.91565031,0.00013972,2]
[333611030,1722279056264,-500.0,0.00013972,2]
[333611031,1722279056274,-500.0,0.00013972,2]
[333611032,1722279056285,-500.0,0.00013972,2]
[333611033,1722279056295,-806.06,0.00013972,2]
[333611034,1722279056305,-500.0,0.00013972,2]
[333611035,1722279056314,-151.0,0.00013972,2]
[333611036,1722279056324,-151.0,0.00013972,2]
[333611037,1722279056334,-624.04,0.00013972,2]
[333611038,1722279056343,-500.0,0.00013972,2]
[333611039,1722279056353,-500.0,0.00013972,2]
[333611040,1722279056363,-6332.45,0.00013972,2]
[333611041,1722279056373,-500.0,0.00013972,2]
[333611042,1722279056383,-500.0,0.00013972,2]
[333611043,1722279056393,-500.0,0.00013972,2]
[333611044,1722279056403,-607.11779317,0.00013972,2]
[333611045,1722279056413,-500.0,0.00013972,2]
[333611046,1722279056423,-500.0,0.00013972,2]
[333611047,1722279056432,-582.63,0.00013972,2]
[333611048,1722279056441,-500.0,0.00013972,2]
[333611049,1722279056451,-500.0,0.00013972,2]
[333611050,1722279056461,-500.0,0.00013972,2]
[333611051,1722279056470,-500.0,0.00013972,2]
[333611052,1722279056480,-1000.0,0.00013979,2]
[333611053,1722279056489,-28178.86825485,0.00014,2]
[333611054,1722279056499,-150.112233,0.00014,2]
[333611055,1722279056508,-335.923772,0.00014,2]
[333611056,1722279056518,-335.923772,0.00014,2]
[333611057,1722279056527,-3344.640788,0.00014,2]
[333611058,1722279056538,-3344.640788,0.00014,2]
[333611059,1722279056547,-151.0,0.00014,2]
[333611060,1722279056558,-3221.47642,0.00014,2]
[333611061,1722279056567,-3221.47642,0.00014,2]
[333611062,1722279056577,-436.262228,0.00014,2]
[333611063,1722279056585,-151.0,0.00014,2]
[333611064,1722279056595,-436.262228,0.00014,2]
[333611065,1722279056605,-151.0,0.00014,2]
[333611066,1722279056615,-151.0,0.00014,2]
[333611067,1722279056624,-167.95448,0.00014,2]
[333611068,1722279056634,-167.95448,0.00014,2]
[333611069,1722279056643,-151.0,0.00014,2]
[333611070,1722279056653,-925.784255,0.00014,2]
[333611071,1722279056662,-925.784255,0.00014,2]
[333611072,1722279056672,-2230.272682,0.00014,2]
[333611073,1722279056682,-2230.272682,0.00014,2]
[333611074,1722279056691,-1078.934376,0.00014,2]
[333611075,1722279056701,-1078.934376,0.00014,2]
[333611076,1722279056710,-151.0,0.00014,2]
[333611077,1722279056720,-399.459892,0.00014,2]
[333611078,1722279056729,-399.459892,0.00014,2]
[333611079,1722279056738,-262.989409,0.00014,2]
[333611080,1722279056748,-262.989409,0.00014,2]
[333611081,1722279056757,-153.0,0.00014027,2]
[333611082,1722279056767,-150.112233,0.000141,2]
[333611083,1722279056777,-575.20775726,0.00014148,2]
[333611084,1722279056786,-300.73855833,0.00014178,2]
[333611085,1722279056796,-150.112233,0.000142,2]
[333611086,1722279056806,-640.07094556,0.00014216,2]
[333611087,1722279056815,-200.0,0.00014223,2]
[333611088,1722279056824,-151.0,0.00014245,2]
[333611089,1722279056834,-151.0,0.00014245,2]
[333611090,1722279056843,-151.0,0.00014245,2]
[333611091,1722279056853,-151.0,0.00014245,2]
[333611092,1722279056863,-151.0,0.00014245,2]
[333611093,1722279056872,-151.0,0.00014245,2]
[333611094,1722279056882,-164.866201,0.00014245,2]
[333611095,1722279056893,-164.866201,0.00014245,2]
[333611096,1722279056903,-372.33154075,0.00014246,5]
[333611097,1722279056913,-194.48596924,0.00014246,2]
[333611098,1722279056923,-500.0,0.00014246,2]
[333611099,1722279056940,-500.0,0.00014246,2]
[333611100,1722279056953,-500.0,0.00014246,2]
[333611101,1722279056963,-151.0,0.00014246,2]
[333611102,1722279056973,-151.0,0.00014246,2]
[333611103,1722279056984,-500.0,0.00014246,2]
[333611104,1722279056994,-151.0,0.00014246,2]
[333611105,1722279057005,-151.0,0.00014246,2]
[333611106,1722279057014,-500.0,0.00014246,2]
[333611107,1722279057024,-500.0,0.00014246,2]
[333611108,1722279057034,-500.0,0.00014246,2]
[333611109,1722279057044,-500.0,0.00014246,2]
[333611110,1722279057055,-500.0,0.00014246,2]
[333611111,1722279057068,-1191.33,0.00014246,2]
[333611112,1722279057078,-500.0,0.00014246,2]
[333611113,1722279057088,-500.0,0.00014246,2]
[333611114,1722279057099,-500.0,0.00014246,2]
[333611115,1722279057110,-500.0,0.00014246,2]
[333611116,1722279057120,-500.0,0.00014246,2]
[333611117,1722279057130,-500.0,0.00014246,2]
[333611118,1722279057141,-500.0,0.00014246,2]
[333611119,1722279057152,-500.0,0.00014246,2]
[333611120,1722279057164,-454.69526365,0.00014246,2]
[333611121,1722279057174,-500.0,0.00014246,2]
[333611122,1722279057185,-500.0,0.00014246,2]
[333611123,1722279057195,-737.74,0.00014246,2]
[333611124,1722279057205,-500.0,0.00014246,2]
[333611125,1722279057215,-612.63769163,0.00014246,2]
[333611126,1722279057226,-500.0,0.00014246,2]
[333611127,1722279057237,-1052.29,0.00014246,2]
[333611128,1722279057247,-623.34,0.00014246,2]
[333611129,1722279057258,-500.0,0.00014246,2]
[333611130,1722279057268,-650.79,0.00014246,2]
[333611131,1722279057278,-500.0,0.00014246,2]
[333611132,1722279057289,-500.0,0.00014246,2]
[333611133,1722279057298,-151.0,0.00014246,2]
[333611134,1722279057308,-151.0,0.00014246,2]
[333611135,1722279057318,-500.0,0.00014246,2]
[333611136,1722279057328,-500.0,0.00014246,2]
[333611137,1722279057338,-151.0,0.00014246,2]
[333611138,1722279057347,-151.0,0.00014246,2]
[333611139,1722279057357,-151.0,0.00014246,2]
[333611140,1722279057367,-151.0,0.00014246,2]
[333611141,1722279057376,-500.0,0.00014246,2]
[333611142,1722279057386,-500.0,0.00014246,2]
[333611143,1722279057395,-500.0,0.00014246,2]
[333611144,1722279057405,-500.0,0.00014246,2]
[333611145,1722279057414,-236.09973462,0.00014246,2]
[333611146,1722279057517,-1578.556924,0.00014246,2]
[333611147,1722279057539,-1578.556924,0.00014246,2]
[333611148,1722279057551,-1405.41,0.00014246,2]
[333611149,1722279057560,-1578.556924,0.00014246,2]
[333611150,1722279057570,-500.0,0.00014246,2]
[333611151,1722279057579,-1578.556924,0.00014246,2]
[333611152,1722279057589,-500.0,0.00014246,2]
[333611153,1722279057598,-500.0,0.00014246,2]
[333611154,1722279057607,-192.27889765,0.00014246,2]
[333611155,1722279057616,-706.22,0.00014246,2]
[333611156,1722279057626,-885.9,0.00014246,2]
[333611157,1722279057636,-500.0,0.00014246,2]
[333611158,1722279057645,-500.0,0.00014246,2]
[333611159,1722279057655,-500.0,0.00014246,2]
[333611160,1722279057664,-500.0,0.00014246,2]
[333611161,1722279057673,-500.0,0.00014246,2]
[333611162,1722279057683,-151.0,0.00014246,2]
[333611163,1722279057693,-500.0,0.00014246,2]
[333611164,1722279057702,-500.0,0.00014246,2]
[333611165,1722279057712,-151.0,0.00014246,2]
[333611166,1722279057721,-500.0,0.00014246,2]
[333611167,1722279057731,-500.0,0.00014246,2]
[333611168,1722279057741,-500.0,0.00014246,2]
[333611169,1722279057750,-500.0,0.00014246,2]
[333611170,1722279057759,-500.0,0.00014246,2]